Workbook

Sheet Main
E10: We
D13: Copyright 2022, FlaktKorea Inc, Any kind of reproduction is prohibited.
D15: (주)플랙트코리아가 제작한 본 프로그램은 사용자가 입력한 조건의 습공기선도를 제공한다.
D17: 사용시 유의 사항 :
E18: 1. "기상 데이터 분석"은 -20℃, 65칸, 0.03, 1.4배율에서만 활성화된다.
E19: 2. WeatherData 시트의 D,E열은 기상청 자료를 입력한다.
E20: 3. 해당 지역, 연도, 시간대 건구온도, 상대습도가 필요하다.
E21: 4. 인쇄 활용 팁 (인쇄 배율이 100% 일 경우)
E22: - A4 규격 : 10W x 1.4배, 65칸, 0.03 선택
E23: - A4 규격 : 12W x 1.2배, 50칸, 0.03 선택
E24: - A3 규격 : 15W x 1.4배, 65칸, 0.03 선택

Sheet Wpoint

Sheet FKchart

Sheet WeatherData
A1: ■ Weather Data | G1: off
A2: No. | B2: 일자 | C2: 시간 | D2: 건구온도 | E2: 상대습도 | F2: 건구온도 | G2: 상대습도 | H2: 건구온도 | I2: 상대습도 | J2: 건구온도 | K2: 상대습도 | L2: 건구온도 | M2: 상대습도
C3: 지역 : | D3: 서울 | F3: 부산 | H3: 부산 | J3: 광주 | L3: 인천
C4: 년도 : | D4: 2021 | F4: 2016 | H4: 2016 | J4: 2014 | L4: 2014
A5: 1 | B5: 20210101 | C5: 1시 | D5: -8.3 | E5: 66 | F5: 2.8 | G5: 55 | H5: 2.8 | I5: 55 | J5: 5.1 | K5: 73 | L5: 3.5 | M5: 71
A6: 2 | B6: 20210101 | C6: 2시 | D6: -8.7 | E6: 68 | F6: 2.8 | G6: 54 | H6: 2.8 | I6: 54 | J6: 5.1 | K6: 69 | L6: 3.1 | M6: 65
A7: 3 | B7: 20210101 | C7: 3시 | D7: -9.1 | E7: 69 | F7: 2.5 | G7: 56 | H7: 2.5 | I7: 56 | J7: 4.8 | K7: 66 | L7: 2.7 | M7: 70
A8: 4 | B8: 20210101 | C8: 4시 | D8: -9.3 | E8: 70 | F8: 2.2 | G8: 51 | H8: 2.2 | I8: 51 | J8: 4.8 | K8: 63 | L8: 2.9 | M8: 65
A9: 5 | B9: 20210101 | C9: 5시 | D9: -9.3 | E9: 71 | F9: 1.6 | G9: 60 | H9: 1.6 | I9: 60 | J9: 3.9 | K9: 66 | L9: 3.3 | M9: 64
A10: 6 | B10: 20210101 | C10: 6시 | D10: -9.7 | E10: 72 | F10: 2.1 | G10: 55 | H10: 2.1 | I10: 55 | J10: 2.6 | K10: 75 | L10: 3.6 | M10: 69
A11: 7 | B11: 20210101 | C11: 7시 | D11: -9.7 | E11: 75 | F11: 1.6 | G11: 59 | H11: 1.6 | I11: 59 | J11: 1.8 | K11: 79 | L11: 3.9 | M11: 66
A12: 8 | B12: 20210101 | C12: 8시 | D12: -9.3 | E12: 71 | F12: 1.9 | G12: 56 | H12: 1.9 | I12: 56 | J12: 1.3 | K12: 82 | L12: 4.2 | M12: 70
A13: 9 | B13: 20210101 | C13: 9시 | D13: -9.3 | E13: 72 | F13: 1.5 | G13: 58 | H13: 1.5 | I13: 58 | J13: 1.2 | K13: 83 | L13: 4.4 | M13: 76
A14: 10 | B14: 20210101 | C14: 10시 | D14: -8.6 | E14: 74 | F14: 2.6 | G14: 53 | H14: 2.6 | I14: 53 | J14: 2.7 | K14: 75 | L14: 5.5 | M14: 79
A15: 11 | B15: 20210101 | C15: 11시 | D15: -6.1 | E15: 68 | F15: 3.7 | G15: 46 | H15: 3.7 | I15: 46 | J15: 5 | K15: 65 | L15: 6.4 | M15: 70
A16: 12 | B16: 20210101 | C16: 12시 | D16: -3.2 | E16: 55 | F16: 6.4 | G16: 40 | H16: 6.4 | I16: 40 | J16: 6.9 | K16: 57 | L16: 6.8 | M16: 67
A17: 13 | B17: 20210101 | C17: 13시 | D17: -1.1 | E17: 52 | F17: 8.4 | G17: 37 | H17: 8.4 | I17: 37 | J17: 7.7 | K17: 45 | L17: 7 | M17: 65
A18: 14 | B18: 20210101 | C18: 14시 | D18: -0.2 | E18: 56 | F18: 9.2 | G18: 36 | H18: 9.2 | I18: 36 | J18: 9.4 | K18: 28 | L18: 7.2 | M18: 59
A19: 15 | B19: 20210101 | C19: 15시 | D19: 1.4 | E19: 53 | F19: 10.2 | G19: 36 | H19: 10.2 | I19: 36 | J19: 10.2 | K19: 29 | L19: 7.2 | M19: 62
A20: 16 | B20: 20210101 | C20: 16시 | D20: 1.2 | E20: 52 | F20: 10.3 | G20: 38 | H20: 10.3 | I20: 38 | J20: 9.9 | K20: 21 | L20: 6.9 | M20: 72
A21: 17 | B21: 20210101 | C21: 17시 | D21: -0.2 | E21: 58 | F21: 9.1 | G21: 40 | H21: 9.1 | I21: 40 | J21: 9.6 | K21: 23 | L21: 6.7 | M21: 76
A22: 18 | B22: 20210101 | C22: 18시 | D22: -0.7 | E22: 61 | F22: 7.7 | G22: 45 | H22: 7.7 | I22: 45 | J22: 8.6 | K22: 29 | L22: 6.5 | M22: 79
A23: 19 | B23: 20210101 | C23: 19시 | D23: -1.4 | E23: 68 | F23: 6.5 | G23: 49 | H23: 6.5 | I23: 49 | J23: 7.2 | K23: 37 | L23: 6.6 | M23: 82
A24: 20 | B24: 20210101 | C24: 20시 | D24: -1.5 | E24: 70 | F24: 6.2 | G24: 53 | H24: 6.2 | I24: 53 | J24: 6.4 | K24: 44 | L24: 6.1 | M24: 76
A25: 21 | B25: 20210101 | C25: 21시 | D25: -1.6 | E25: 73 | F25: 5.9 | G25: 62 | H25: 5.9 | I25: 62 | J25: 4.9 | K25: 49 | L25: 5.8 | M25: 68
A26: 22 | B26: 20210101 | C26: 22시 | D26: -1.6 | E26: 66 | F26: 5.6 | G26: 67 | H26: 5.6 | I26: 67 | J26: 4.3 | K26: 53 | L26: 4.8 | M26: 77
A27: 23 | B27: 20210101 | C27: 23시 | D27: -1.8 | E27: 63 | F27: 5.4 | G27: 65 | H27: 5.4 | I27: 65 | J27: 4 | K27: 56 | L27: 3.8 | M27: 78
A28: 24 | B28: 20210101 | C28: 24시 | D28: -2.6 | E28: 55 | F28: 5.6 | G28: 63 | H28: 5.6 | I28: 63 | J28: 3.9 | K28: 57 | L28: 3 | M28: 64
A29: 25 | B29: 20210102 | C29: 1시 | D29: -3.4 | E29: 55 | F29: 5.5 | G29: 63 | H29: 5.5 | I29: 63 | J29: 3.3 | K29: 63 | L29: 2.2 | M29: 60
A30: 26 | B30: 20210102 | C30: 2시 | D30: -4.1 | E30: 39 | F30: 5.3 | G30: 58 | H30: 5.3 | I30: 58 | J30: 3.2 | K30: 65 | L30: 2.3 | M30: 52
A31: 27 | B31: 20210102 | C31: 3시 | D31: -5 | E31: 42 | F31: 4.9 | G31: 60 | H31: 4.9 | I31: 60 | J31: 3.2 | K31: 66 | L31: 1.7 | M31: 52
A32: 28 | B32: 20210102 | C32: 4시 | D32: -5.8 | E32: 45 | F32: 4.7 | G32: 63 | H32: 4.7 | I32: 63 | J32: 2.2 | K32: 72 | L32: 1.4 | M32: 53
A33: 29 | B33: 20210102 | C33: 5시 | D33: -6.3 | E33: 45 | F33: 5.1 | G33: 64 | H33: 5.1 | I33: 64 | J33: 1.9 | K33: 74 | L33: 0.7 | M33: 58
A34: 30 | B34: 20210102 | C34: 6시 | D34: -6.6 | E34: 40 | F34: 5.7 | G34: 63 | H34: 5.7 | I34: 63 | J34: 1.8 | K34: 74 | L34: 0.8 | M34: 67
A35: 31 | B35: 20210102 | C35: 7시 | D35: -6.6 | E35: 35 | F35: 4.8 | G35: 64 | H35: 4.8 | I35: 64 | J35: 0.9 | K35: 80 | L35: 0.3 | M35: 54
A36: 32 | B36: 20210102 | C36: 8시 | D36: -7.4 | E36: 38 | F36: 4.6 | G36: 64 | H36: 4.6 | I36: 64 | J36: 0.3 | K36: 83 | L36: 0.4 | M36: 59
A37: 33 | B37: 20210102 | C37: 9시 | D37: -8.3 | E37: 41 | F37: 4.9 | G37: 60 | H37: 4.9 | I37: 60 | J37: -0.4 | K37: 84 | L37: 0.3 | M37: 48
A38: 34 | B38: 20210102 | C38: 10시 | D38: -7.6 | E38: 39 | F38: 6.4 | G38: 55 | H38: 6.4 | I38: 55 | J38: 1.3 | K38: 78 | L38: 1.1 | M38: 46
A39: 35 | B39: 20210102 | C39: 11시 | D39: -6 | E39: 35 | F39: 8.1 | G39: 58 | H39: 8.1 | I39: 58 | J39: 3.2 | K39: 70 | L39: 1.9 | M39: 43
A40: 36 | B40: 20210102 | C40: 12시 | D40: -5.3 | E40: 32 | F40: 10.9 | G40: 54 | H40: 10.9 | I40: 54 | J40: 3.9 | K40: 68 | L40: 3.9 | M40: 37
A41: 37 | B41: 20210102 | C41: 13시 | D41: -3.2 | E41: 33 | F41: 9.7 | G41: 56 | H41: 9.7 | I41: 56 | J41: 6.3 | K41: 50 | L41: 4.4 | M41: 37
A42: 38 | B42: 20210102 | C42: 14시 | D42: -2.3 | E42: 31 | F42: 10.3 | G42: 58 | H42: 10.3 | I42: 58 | J42: 8.5 | K42: 34 | L42: 4.9 | M42: 41
A43: 39 | B43: 20210102 | C43: 15시 | D43: -1.5 | E43: 31 | F43: 11.1 | G43: 58 | H43: 11.1 | I43: 58 | J43: 9.8 | K43: 31 | L43: 5.7 | M43: 42
A44: 40 | B44: 20210102 | C44: 16시 | D44: -2.3 | E44: 33 | F44: 11.4 | G44: 57 | H44: 11.4 | I44: 57 | J44: 9.8 | K44: 22 | L44: 4.5 | M44: 38
A45: 41 | B45: 20210102 | C45: 17시 | D45: -1.7 | E45: 34 | F45: 11.2 | G45: 59 | H45: 11.2 | I45: 59 | J45: 10.1 | K45: 22 | L45: 3.7 | M45: 44
A46: 42 | B46: 20210102 | C46: 18시 | D46: -2.3 | E46: 35 | F46: 10.5 | G46: 63 | H46: 10.5 | I46: 63 | J46: 9.1 | K46: 23 | L46: 2.3 | M46: 46
A47: 43 | B47: 20210102 | C47: 19시 | D47: -3.2 | E47: 39 | F47: 9.5 | G47: 63 | H47: 9.5 | I47: 63 | J47: 6.6 | K47: 28 | L47: 2 | M47: 58
A48: 44 | B48: 20210102 | C48: 20시 | D48: -3.8 | E48: 50 | F48: 8.9 | G48: 68 | H48: 8.9 | I48: 68 | J48: 5.6 | K48: 29 | L48: 1.1 | M48: 54
A49: 45 | B49: 20210102 | C49: 21시 | D49: -4.2 | E49: 41 | F49: 9.1 | G49: 71 | H49: 9.1 | I49: 71 | J49: 4.7 | K49: 31 | L49: 1.1 | M49: 51
A50: 46 | B50: 20210103 | C50: 22시 | D50: -5 | E50: 39 | F50: 9.2 | G50: 73 | H50: 9.2 | I50: 73 | J50: 4.6 | K50: 32 | L50: 1.2 | M50: 60
A51: 47 | B51: 20210103 | C51: 23시 | D51: -5.5 | E51: 42 | F51: 9.4 | G51: 71 | H51: 9.4 | I51: 71 | J51: 3.5 | K51: 43 | L51: 0.9 | M51: 56
A52: 48 | B52: 20210103 | C52: 24시 | D52: -6.1 | E52: 45 | F52: 9.6 | G52: 72 | H52: 9.6 | I52: 72 | J52: 2.7 | K52: 49 | L52: 0.5 | M52: 55
A53: 49 | B53: 20210103 | C53: 1시 | D53: -6.6 | E53: 45 | F53: 9 | G53: 72 | H53: 9 | I53: 72 | J53: 2.4 | K53: 47 | L53: 0.3 | M53: 70
A54: 50 | B54: 20210103 | C54: 2시 | D54: -7.3 | E54: 48 | F54: 8.7 | G54: 73 | H54: 8.7 | I54: 73 | J54: 1.8 | K54: 57 | L54: 0.6 | M54: 67
A55: 51 | B55: 20210103 | C55: 3시 | D55: -7.7 | E55: 50 | F55: 8.8 | G55: 73 | H55: 8.8 | I55: 73 | J55: 1.1 | K55: 59 | L55: 0.5 | M55: 64
A56: 52 | B56: 20210103 | C56: 4시 | D56: -8 | E56: 51 | F56: 8.8 | G56: 70 | H56: 8.8 | I56: 70 | J56: 0.3 | K56: 63 | L56: 0.8 | M56: 63
A57: 53 | B57: 20210103 | C57: 5시 | D57: -8.3 | E57: 52 | F57: 8.7 | G57: 72 | H57: 8.7 | I57: 72 | J57: -0.1 | K57: 67 | L57: 0.9 | M57: 56
A58: 54 | B58: 20210103 | C58: 6시 | D58: -8.8 | E58: 53 | F58: 8.9 | G58: 72 | H58: 8.9 | I58: 72 | J58: -0.3 | K58: 67 | L58: 0.3 | M58: 56
A59: 55 | B59: 20210103 | C59: 7시 | D59: -9 | E59: 53 | F59: 9.1 | G59: 70 | H59: 9.1 | I59: 70 | J59: -0.5 | K59: 69 | L59: 0.5 | M59: 60
A60: 56 | B60: 20210103 | C60: 8시 | D60: -8.7 | E60: 54 | F60: 8.2 | G60: 75 | H60: 8.2 | I60: 75 | J60: -0.7 | K60: 68 | L60: 0.8 | M60: 60
A61: 57 | B61: 20210103 | C61: 9시 | D61: -8.7 | E61: 58 | F61: 8 | G61: 76 | H61: 8 | I61: 76 | J61: -0.9 | K61: 71 | L61: 1.2 | M61: 62
A62: 58 | B62: 20210103 | C62: 10시 | D62: -7.6 | E62: 57 | F62: 10.7 | G62: 66 | H62: 10.7 | I62: 66 | J62: 0.1 | K62: 67 | L62: 2.1 | M62: 69
A63: 59 | B63: 20210103 | C63: 11시 | D63: -5.7 | E63: 46 | F63: 12.9 | G63: 59 | H63: 12.9 | I63: 59 | J63: 1.4 | K63: 62 | L63: 2.9 | M63: 71
A64: 60 | B64: 20210103 | C64: 12시 | D64: -4.2 | E64: 39 | F64: 13.4 | G64: 58 | H64: 13.4 | I64: 58 | J64: 4.1 | K64: 53 | L64: 4.8 | M64: 58
A65: 61 | B65: 20210103 | C65: 13시 | D65: -3.1 | E65: 33 | F65: 15.4 | G65: 53 | H65: 15.4 | I65: 53 | J65: 7.2 | K65: 39 | L65: 6.5 | M65: 72
A66: 62 | B66: 20210103 | C66: 14시 | D66: -2.4 | E66: 30 | F66: 16.1 | G66: 47 | H66: 16.1 | I66: 47 | J66: 9.9 | K66: 34 | L66: 6 | M66: 75
A67: 63 | B67: 20210103 | C67: 15시 | D67: -2.3 | E67: 30 | F67: 14.9 | G67: 52 | H67: 14.9 | I67: 52 | J67: 11.1 | K67: 21 | L67: 6.6 | M67: 71
A68: 64 | B68: 20210103 | C68: 16시 | D68: -2.4 | E68: 33 | F68: 15.2 | G68: 61 | H68: 15.2 | I68: 61 | J68: 11 | K68: 24 | L68: 6.2 | M68: 78
A69: 65 | B69: 20210103 | C69: 17시 | D69: -2.3 | E69: 35 | F69: 14.1 | G69: 66 | H69: 14.1 | I69: 66 | J69: 10.8 | K69: 29 | L69: 5.6 | M69: 82
A70: 66 | B70: 20210103 | C70: 18시 | D70: -2.6 | E70: 36 | F70: 13.1 | G70: 69 | H70: 13.1 | I70: 69 | J70: 10 | K70: 32 | L70: 5 | M70: 87
A71: 67 | B71: 20210104 | C71: 19시 | D71: -3.6 | E71: 40 | F71: 11.6 | G71: 73 | H71: 11.6 | I71: 73 | J71: 9.1 | K71: 36 | L71: 4.3 | M71: 96
A72: 68 | B72: 20210104 | C72: 20시 | D72: -4.4 | E72: 41 | F72: 10.7 | G72: 74 | H72: 10.7 | I72: 74 | J72: 8.1 | K72: 27 | L72: 3.1 | M72: 92
A73: 69 | B73: 20210104 | C73: 21시 | D73: -4.9 | E73: 43 | F73: 10.1 | G73: 76 | H73: 10.1 | I73: 76 | J73: 6.8 | K73: 29 | L73: 2.3 | M73: 83
A74: 70 | B74: 20210104 | C74: 22시 | D74: -5.3 | E74: 45 | F74: 10.3 | G74: 75 | H74: 10.3 | I74: 75 | J74: 4.9 | K74: 35 | L74: 1.6 | M74: 69
A75: 71 | B75: 20210104 | C75: 23시 | D75: -5.9 | E75: 50 | F75: 10.5 | G75: 74 | H75: 10.5 | I75: 74 | J75: 4.6 | K75: 38 | L75: 1 | M75: 73
A76: 72 | B76: 20210104 | C76: 24시 | D76: -5.3 | E76: 44 | F76: 10.3 | G76: 79 | H76: 10.3 | I76: 79 | J76: 4.3 | K76: 42 | L76: 0.5 | M76: 67
A77: 73 | B77: 20210104 | C77: 1시 | D77: -6.2 | E77: 48 | F77: 9.7 | G77: 78 | H77: 9.7 | I77: 78 | J77: 3.5 | K77: 45 | L77: -0.1 | M77: 68
A78: 74 | B78: 20210104 | C78: 2시 | D78: -6.5 | E78: 49 | F78: 9.6 | G78: 79 | H78: 9.6 | I78: 79 | J78: 3.7 | K78: 50 | L78: -0.5 | M78: 64
A79: 75 | B79: 20210104 | C79: 3시 | D79: -7 | E79: 51 | F79: 9.5 | G79: 70 | H79: 9.5 | I79: 70 | J79: 3.6 | K79: 50 | L79: -0.8 | M79: 64
A80: 76 | B80: 20210104 | C80: 4시 | D80: -7.1 | E80: 54 | F80: 9.3 | G80: 69 | H80: 9.3 | I80: 69 | J80: 3.1 | K80: 53 | L80: -1.1 | M80: 58
A81: 77 | B81: 20210104 | C81: 5시 | D81: -7.4 | E81: 56 | F81: 8.6 | G81: 72 | H81: 8.6 | I81: 72 | J81: 2.7 | K81: 69 | L81: -1.7 | M81: 56
A82: 78 | B82: 20210104 | C82: 6시 | D82: -8.1 | E82: 52 | F82: 7.8 | G82: 70 | H82: 7.8 | I82: 70 | J82: 2.4 | K82: 78 | L82: -2.4 | M82: 58
A83: 79 | B83: 20210104 | C83: 7시 | D83: -8.1 | E83: 47 | F83: 8.3 | G83: 64 | H83: 8.3 | I83: 64 | J83: 1.7 | K83: 76 | L83: -2.7 | M83: 62
A84: 80 | B84: 20210104 | C84: 8시 | D84: -8.3 | E84: 51 | F84: 7.6 | G84: 66 | H84: 7.6 | I84: 66 | J84: 0.9 | K84: 73 | L84: -3 | M84: 61
A85: 81 | B85: 20210104 | C85: 9시 | D85: -8.1 | E85: 48 | F85: 8.1 | G85: 65 | H85: 8.1 | I85: 65 | J85: 0.2 | K85: 73 | L85: -2.7 | M85: 59
A86: 82 | B86: 20210104 | C86: 10시 | D86: -7.6 | E86: 48 | F86: 9.1 | G86: 63 | H86: 9.1 | I86: 63 | J86: 1.2 | K86: 66 | L86: -2.2 | M86: 59
A87: 83 | B87: 20210104 | C87: 11시 | D87: -5.6 | E87: 43 | F87: 11.6 | G87: 57 | H87: 11.6 | I87: 57 | J87: 2.9 | K87: 53 | L87: -0.6 | M87: 53
A88: 84 | B88: 20210104 | C88: 12시 | D88: -3 | E88: 40 | F88: 12.8 | G88: 52 | H88: 12.8 | I88: 52 | J88: 4.2 | K88: 38 | L88: 0.3 | M88: 52
A89: 85 | B89: 20210104 | C89: 13시 | D89: -1.5 | E89: 40 | F89: 13.8 | G89: 47 | H89: 13.8 | I89: 47 | J89: 5.1 | K89: 33 | L89: 1.6 | M89: 50
A90: 86 | B90: 20210104 | C90: 14시 | D90: -0.6 | E90: 41 | F90: 14.5 | G90: 39 | H90: 14.5 | I90: 39 | J90: 5.3 | K90: 31 | L90: 1.9 | M90: 57
A91: 87 | B91: 20210104 | C91: 15시 | D91: -0.4 | E91: 40 | F91: 14.9 | G91: 37 | H91: 14.9 | I91: 37 | J91: 6.2 | K91: 32 | L91: 2.5 | M91: 53
A92: 88 | B92: 20210104 | C92: 16시 | D92: 0 | E92: 40 | F92: 14.5 | G92: 34 | H92: 14.5 | I92: 34 | J92: 6.4 | K92: 31 | L92: 2.7 | M92: 58
A93: 89 | B93: 20210104 | C93: 17시 | D93: 0.2 | E93: 42 | F93: 13.8 | G93: 30 | H93: 13.8 | I93: 30 | J93: 5.6 | K93: 34 | L93: 2 | M93: 60
A94: 90 | B94: 20210104 | C94: 18시 | D94: -0.3 | E94: 51 | F94: 12.5 | G94: 33 | H94: 12.5 | I94: 33 | J94: 4.2 | K94: 46 | L94: 1.1 | M94: 60
A95: 91 | B95: 20210105 | C95: 19시 | D95: -0.9 | E95: 52 | F95: 10.6 | G95: 36 | H95: 10.6 | I95: 36 | J95: 2.4 | K95: 54 | L95: 0.9 | M95: 61
A96: 92 | B96: 20210105 | C96: 20시 | D96: -0.9 | E96: 49 | F96: 9.8 | G96: 29 | H96: 9.8 | I96: 29 | J96: 1.7 | K96: 55 | L96: 0.5 | M96: 57
A97: 93 | B97: 20210105 | C97: 21시 | D97: -0.7 | E97: 51 | F97: 9.4 | G97: 29 | H97: 9.4 | I97: 29 | J97: 0.6 | K97: 58 | L97: -0.3 | M97: 59
A98: 94 | B98: 20210105 | C98: 22시 | D98: -0.5 | E98: 57 | F98: 9.3 | G98: 28 | H98: 9.3 | I98: 28 | J98: 0 | K98: 59 | L98: -1.3 | M98: 57
A99: 95 | B99: 20210105 | C99: 23시 | D99: -0.6 | E99: 54 | F99: 8.8 | G99: 29 | H99: 8.8 | I99: 29 | J99: -0.5 | K99: 66 | L99: -2 | M99: 57
A100: 96 | B100: 20210105 | C100: 24시 | D100: -1.3 | E100: 69 | F100: 8.3 | G100: 30 | H100: 8.3 | I100: 30 | J100: -0.2 | K100: 66 | L100: -2.5 | M100: 57
A101: 97 | B101: 20210105 | C101: 1시 | D101: -2.1 | E101: 73 | F101: 8.1 | G101: 29 | H101: 8.1 | I101: 29 | J101: -0.7 | K101: 71 | L101: -2.8 | M101: 58
A102: 98 | B102: 20210105 | C102: 2시 | D102: -2.5 | E102: 75 | F102: 7.5 | G102: 31 | H102: 7.5 | I102: 31 | J102: -0.9 | K102: 73 | L102: -2.9 | M102: 59
A103: 99 | B103: 20210105 | C103: 3시 | D103: -2.5 | E103: 77 | F103: 7 | G103: 31 | H103: 7 | I103: 31 | J103: -1.4 | K103: 75 | L103: -3.1 | M103: 62
A104: 100 | B104: 20210105 | C104: 4시 | D104: -2.5 | E104: 76 | F104: 6.3 | G104: 32 | H104: 6.3 | I104: 32 | J104: -1.5 | K104: 74 | L104: -3.3 | M104: 61
A105: 101 | B105: 20210105 | C105: 5시 | D105: -2.7 | E105: 78 | F105: 6.3 | G105: 29 | H105: 6.3 | I105: 29 | J105: -1.9 | K105: 77 | L105: -3.2 | M105: 60
A106: 102 | B106: 20210105 | C106: 6시 | D106: -3.9 | E106: 82 | F106: 6.6 | G106: 27 | H106: 6.6 | I106: 27 | J106: -2.6 | K106: 80 | L106: -3.2 | M106: 59
A107: 103 | B107: 20210105 | C107: 7시 | D107: -4.2 | E107: 80 | F107: 6.9 | G107: 28 | H107: 6.9 | I107: 28 | J107: -2.8 | K107: 81 | L107: -3.5 | M107: 58
A108: 104 | B108: 20210105 | C108: 8시 | D108: -4.8 | E108: 77 | F108: 6.5 | G108: 31 | H108: 6.5 | I108: 31 | J108: -3.1 | K108: 82 | L108: -3.4 | M108: 54
A109: 105 | B109: 20210105 | C109: 9시 | D109: -5.6 | E109: 75 | F109: 6.2 | G109: 28 | H109: 6.2 | I109: 28 | J109: -3.3 | K109: 83 | L109: -2.9 | M109: 55
A110: 106 | B110: 20210105 | C110: 10시 | D110: -5.8 | E110: 67 | F110: 6.2 | G110: 30 | H110: 6.2 | I110: 30 | J110: -2 | K110: 77 | L110: -1.9 | M110: 52
A111: 107 | B111: 20210105 | C111: 11시 | D111: -5.2 | E111: 46 | F111: 6 | G111: 32 | H111: 6 | I111: 32 | J111: 1.3 | K111: 66 | L111: -0.8 | M111: 53
A112: 108 | B112: 20210105 | C112: 12시 | D112: -4.6 | E112: 36 | F112: 6.3 | G112: 35 | H112: 6.3 | I112: 35 | J112: 2.8 | K112: 45 | L112: -0.2 | M112: 55
A113: 109 | B113: 20210105 | C113: 13시 | D113: -4.6 | E113: 33 | F113: 4.8 | G113: 54 | H113: 4.8 | I113: 54 | J113: 4.5 | K113: 37 | L113: 1.2 | M113: 48
A114: 110 | B114: 20210105 | C114: 14시 | D114: -4.1 | E114: 34 | F114: 3.6 | G114: 84 | H114: 3.6 | I114: 84 | J114: 5.4 | K114: 29 | L114: 1.4 | M114: 40
A115: 111 | B115: 20210105 | C115: 15시 | D115: -4.2 | E115: 33 | F115: 4.3 | G115: 71 | H115: 4.3 | I115: 71 | J115: 6.4 | K115: 26 | L115: 2.6 | M115: 47
A116: 112 | B116: 20210105 | C116: 16시 | D116: -3.8 | E116: 35 | F116: 5.2 | G116: 65 | H116: 5.2 | I116: 65 | J116: 7.1 | K116: 22 | L116: 2.5 | M116: 45
A117: 113 | B117: 20210105 | C117: 17시 | D117: -3.6 | E117: 33 | F117: 5.5 | G117: 60 | H117: 5.5 | I117: 60 | J117: 6.3 | K117: 21 | L117: 1.5 | M117: 51
A118: 114 | B118: 20210105 | C118: 18시 | D118: -4.5 | E118: 31 | F118: 5.6 | G118: 59 | H118: 5.6 | I118: 59 | J118: 5.4 | K118: 26 | L118: 0.8 | M118: 57
A119: 115 | B119: 20210106 | C119: 19시 | D119: -5.7 | E119: 34 | F119: 5 | G119: 57 | H119: 5 | I119: 57 | J119: 3.7 | K119: 33 | L119: 0.6 | M119: 65
A120: 116 | B120: 20210106 | C120: 20시 | D120: -6.5 | E120: 39 | F120: 4.6 | G120: 58 | H120: 4.6 | I120: 58 | J120: 2.6 | K120: 40 | L120: 0.5 | M120: 70
A121: 117 | B121: 20210106 | C121: 21시 | D121: -7.1 | E121: 41 | F121: 4.4 | G121: 50 | H121: 4.4 | I121: 50 | J121: 2.2 | K121: 46 | L121: 0.6 | M121: 70
A122: 118 | B122: 20210106 | C122: 22시 | D122: -7.6 | E122: 43 | F122: 4.3 | G122: 38 | H122: 4.3 | I122: 38 | J122: 1.5 | K122: 51 | L122: 0.3 | M122: 71
A123: 119 | B123: 20210106 | C123: 23시 | D123: -8.5 | E123: 51 | F123: 4.2 | G123: 28 | H123: 4.2 | I123: 28 | J123: 0.5 | K123: 55 | L123: 0.3 | M123: 68
A124: 120 | B124: 20210106 | C124: 24시 | D124: -9.5 | E124: 53 | F124: 4.2 | G124: 21 | H124: 4.2 | I124: 21 | J124: -0.4 | K124: 58 | L124: -0.2 | M124: 70
A125: 121 | B125: 20210106 | C125: 1시 | D125: -9.9 | E125: 54 | F125: 3.8 | G125: 23 | H125: 3.8 | I125: 23 | J125: -0.7 | K125: 60 | L125: -0.9 | M125: 68
A126: 122 | B126: 20210106 | C126: 2시 | D126: -10.3 | E126: 57 | F126: 3.4 | G126: 22 | H126: 3.4 | I126: 22 | J126: -0.3 | K126: 58 | L126: -1.2 | M126: 69
A127: 123 | B127: 20210106 | C127: 3시 | D127: -10.6 | E127: 57 | F127: 3 | G127: 24 | H127: 3 | I127: 24 | J127: -1.1 | K127: 64 | L127: -1.1 | M127: 71
A128: 124 | B128: 20210106 | C128: 4시 | D128: -11.1 | E128: 61 | F128: 3.3 | G128: 21 | H128: 3.3 | I128: 21 | J128: -1.6 | K128: 69 | L128: -1.2 | M128: 72
A129: 125 | B129: 20210106 | C129: 5시 | D129: -11.2 | E129: 64 | F129: 3.3 | G129: 20 | H129: 3.3 | I129: 20 | J129: -1.9 | K129: 69 | L129: -0.7 | M129: 68
A130: 126 | B130: 20210106 | C130: 6시 | D130: -11.6 | E130: 64 | F130: 2.2 | G130: 22 | H130: 2.2 | I130: 22 | J130: -2 | K130: 69 | L130: -1.5 | M130: 72
A131: 127 | B131: 20210106 | C131: 7시 | D131: -11.7 | E131: 62 | F131: 2.4 | G131: 21 | H131: 2.4 | I131: 21 | J131: -2.7 | K131: 72 | L131: -2.3 | M131: 75
A132: 128 | B132: 20210106 | C132: 8시 | D132: -11.9 | E132: 61 | F132: 2 | G132: 27 | H132: 2 | I132: 27 | J132: -3.1 | K132: 76 | L132: -2.1 | M132: 86
A133: 129 | B133: 20210106 | C133: 9시 | D133: -11.7 | E133: 64 | F133: 1.9 | G133: 31 | H133: 1.9 | I133: 31 | J133: -3.1 | K133: 73 | L133: -0.9 | M133: 74
A134: 130 | B134: 20210106 | C134: 10시 | D134: -10.7 | E134: 62 | F134: 1.9 | G134: 36 | H134: 1.9 | I134: 36 | J134: -1.6 | K134: 66 | L134: 0 | M134: 68
A135: 131 | B135: 20210106 | C135: 11시 | D135: -8.2 | E135: 53 | F135: 4.3 | G135: 32 | H135: 4.3 | I135: 32 | J135: 1.3 | K135: 57 | L135: 2.2 | M135: 61
A136: 132 | B136: 20210106 | C136: 12시 | D136: -7 | E136: 46 | F136: 6.4 | G136: 34 | H136: 6.4 | I136: 34 | J136: 3.9 | K136: 48 | L136: 3 | M136: 62
A137: 133 | B137: 20210106 | C137: 13시 | D137: -6 | E137: 37 | F137: 7 | G137: 35 | H137: 7 | I137: 35 | J137: 6.6 | K137: 36 | L137: 4.1 | M137: 60
A138: 134 | B138: 20210106 | C138: 14시 | D138: -4.6 | E138: 30 | F138: 7.6 | G138: 37 | H138: 7.6 | I138: 37 | J138: 7.3 | K138: 29 | L138: 5.1 | M138: 57
A139: 135 | B139: 20210106 | C139: 15시 | D139: -3.6 | E139: 26 | F139: 8.5 | G139: 35 | H139: 8.5 | I139: 35 | J139: 8 | K139: 29 | L139: 5.1 | M139: 51
A140: 136 | B140: 20210106 | C140: 16시 | D140: -2.3 | E140: 26 | F140: 8.2 | G140: 36 | H140: 8.2 | I140: 36 | J140: 8 | K140: 30 | L140: 4.8 | M140: 54
A141: 137 | B141: 20210106 | C141: 17시 | D141: -2.2 | E141: 25 | F141: 8.3 | G141: 36 | H141: 8.3 | I141: 36 | J141: 7.9 | K141: 30 | L141: 4 | M141: 56
A142: 138 | B142: 20210106 | C142: 18시 | D142: -3.2 | E142: 27 | F142: 7.4 | G142: 36 | H142: 7.4 | I142: 36 | J142: 7.3 | K142: 31 | L142: 3.2 | M142: 60
A143: 139 | B143: 20210107 | C143: 19시 | D143: -3.7 | E143: 28 | F143: 5.8 | G143: 38 | H143: 5.8 | I143: 38 | J143: 5.9 | K143: 37 | L143: 2.9 | M143: 60
A144: 140 | B144: 20210107 | C144: 20시 | D144: -4.2 | E144: 60 | F144: 5.4 | G144: 38 | H144: 5.4 | I144: 38 | J144: 4.2 | K144: 44 | L144: 2.6 | M144: 60
A145: 141 | B145: 20210107 | C145: 21시 | D145: -5.5 | E145: 87 | F145: 5.4 | G145: 40 | H145: 5.4 | I145: 40 | J145: 3.6 | K145: 46 | L145: 2.3 | M145: 62
A146: 142 | B146: 20210107 | C146: 22시 | D146: -5.1 | E146: 89 | F146: 5.2 | G146: 42 | H146: 5.2 | I146: 42 | J146: 3.2 | K146: 47 | L146: 2.5 | M146: 64
A147: 143 | B147: 20210107 | C147: 23시 | D147: -4.7 | E147: 77 | F147: 4.9 | G147: 42 | H147: 4.9 | I147: 42 | J147: 2.1 | K147: 52 | L147: 2.3 | M147: 66
A148: 144 | B148: 20210107 | C148: 24시 | D148: -5.6 | E148: 76 | F148: 4.6 | G148: 45 | H148: 4.6 | I148: 45 | J148: 1.5 | K148: 56 | L148: 2.2 | M148: 64
A149: 145 | B149: 20210107 | C149: 1시 | D149: -8.3 | E149: 72 | F149: 4.4 | G149: 47 | H149: 4.4 | I149: 47 | J149: 0.8 | K149: 58 | L149: 2 | M149: 68
A150: 146 | B150: 20210107 | C150: 2시 | D150: -9.6 | E150: 75 | F150: 3.7 | G150: 51 | H150: 3.7 | I150: 51 | J150: 0.2 | K150: 62 | L150: 1.7 | M150: 67
A151: 147 | B151: 20210107 | C151: 3시 | D151: -11.6 | E151: 54 | F151: 3.2 | G151: 53 | H151: 3.2 | I151: 53 | J151: -0.7 | K151: 72 | L151: 1.2 | M151: 67
A152: 148 | B152: 20210107 | C152: 4시 | D152: -13.2 | E152: 55 | F152: 2.7 | G152: 54 | H152: 2.7 | I152: 54 | J152: -0.7 | K152: 69 | L152: 1.6 | M152: 65
A153: 149 | B153: 20210107 | C153: 5시 | D153: -14.3 | E153: 59 | F153: 2.6 | G153: 55 | H153: 2.6 | I153: 55 | J153: -1.3 | K153: 72 | L153: 1.7 | M153: 65
A154: 150 | B154: 20210107 | C154: 6시 | D154: -15 | E154: 56 | F154: 2.4 | G154: 55 | H154: 2.4 | I154: 55 | J154: -1.8 | K154: 74 | L154: 1.5 | M154: 69
A155: 151 | B155: 20210107 | C155: 7시 | D155: -15.6 | E155: 58 | F155: 1.8 | G155: 57 | H155: 1.8 | I155: 57 | J155: -2 | K155: 75 | L155: 1.6 | M155: 67
A156: 152 | B156: 20210107 | C156: 8시 | D156: -16.1 | E156: 55 | F156: 1.6 | G156: 57 | H156: 1.6 | I156: 57 | J156: -1.8 | K156: 73 | L156: 1 | M156: 69
A157: 153 | B157: 20210107 | C157: 9시 | D157: -16.4 | E157: 55 | F157: 1.4 | G157: 56 | H157: 1.4 | I157: 56 | J157: -1.4 | K157: 74 | L157: 1.2 | M157: 70
A158: 154 | B158: 20210107 | C158: 10시 | D158: -16.2 | E158: 56 | F158: 2.9 | G158: 54 | H158: 2.9 | I158: 54 | J158: 0 | K158: 67 | L158: 2.8 | M158: 64
A159: 155 | B159: 20210107 | C159: 11시 | D159: -15.3 | E159: 50 | F159: 4.3 | G159: 51 | H159: 4.3 | I159: 51 | J159: 0.9 | K159: 65 | L159: 3.9 | M159: 62
A160: 156 | B160: 20210107 | C160: 12시 | D160: -14.8 | E160: 48 | F160: 4.9 | G160: 48 | H160: 4.9 | I160: 48 | J160: 2.5 | K160: 58 | L160: 4.2 | M160: 62
A161: 157 | B161: 20210107 | C161: 13시 | D161: -13.8 | E161: 45 | F161: 6.4 | G161: 44 | H161: 6.4 | I161: 44 | J161: 5 | K161: 43 | L161: 4.2 | M161: 66
A162: 158 | B162: 20210107 | C162: 14시 | D162: -13.1 | E162: 42 | F162: 7.1 | G162: 37 | H162: 7.1 | I162: 37 | J162: 7.3 | K162: 34 | L162: 4.6 | M162: 67
A163: 159 | B163: 20210107 | C163: 15시 | D163: -12.4 | E163: 40 | F163: 7.8 | G163: 32 | H163: 7.8 | I163: 32 | J163: 9.2 | K163: 36 | L163: 4.9 | M163: 67
A164: 160 | B164: 20210107 | C164: 16시 | D164: -12.4 | E164: 38 | F164: 8 | G164: 31 | H164: 8 | I164: 31 | J164: 8.9 | K164: 39 | L164: 4.9 | M164: 69
A165: 161 | B165: 20210107 | C165: 17시 | D165: -12.3 | E165: 37 | F165: 6.6 | G165: 36 | H165: 6.6 | I165: 36 | J165: 9.2 | K165: 40 | L165: 4.4 | M165: 72
A166: 162 | B166: 20210107 | C166: 18시 | D166: -13 | E166: 38 | F166: 5.8 | G166: 37 | H166: 5.8 | I166: 37 | J166: 8.5 | K166: 43 | L166: 4.1 | M166: 75
A167: 163 | B167: 20210108 | C167: 19시 | D167: -13.7 | E167: 45 | F167: 4.9 | G167: 40 | H167: 4.9 | I167: 40 | J167: 7.6 | K167: 45 | L167: 3.9 | M167: 75
A168: 164 | B168: 20210108 | C168: 20시 | D168: -14.2 | E168: 46 | F168: 4.4 | G168: 41 | H168: 4.4 | I168: 41 | J168: 6.7 | K168: 50 | L168: 3.8 | M168: 79
A169: 165 | B169: 20210108 | C169: 21시 | D169: -14.6 | E169: 47 | F169: 3.9 | G169: 44 | H169: 3.9 | I169: 44 | J169: 6.6 | K169: 49 | L169: 3.9 | M169: 79
A170: 166 | B170: 20210108 | C170: 22시 | D170: -14.9 | E170: 50 | F170: 3 | G170: 47 | H170: 3 | I170: 47 | J170: 6.1 | K170: 47 | L170: 4 | M170: 78
A171: 167 | B171: 20210108 | C171: 23시 | D171: -15.3 | E171: 54 | F171: 2.2 | G171: 48 | H171: 2.2 | I171: 48 | J171: 5.9 | K171: 47 | L171: 4 | M171: 78
A172: 168 | B172: 20210108 | C172: 24시 | D172: -15.5 | E172: 54 | F172: 1.7 | G172: 50 | H172: 1.7 | I172: 50 | J172: 5.7 | K172: 48 | L172: 3.8 | M172: 81
A173: 169 | B173: 20210108 | C173: 1시 | D173: -15.9 | E173: 52 | F173: 1.3 | G173: 51 | H173: 1.3 | I173: 51 | J173: 5.5 | K173: 48 | L173: 3.8 | M173: 81
A174: 170 | B174: 20210108 | C174: 2시 | D174: -16.5 | E174: 50 | F174: 0.8 | G174: 51 | H174: 0.8 | I174: 51 | J174: 5.4 | K174: 47 | L174: 3.7 | M174: 75
A175: 171 | B175: 20210108 | C175: 3시 | D175: -16.9 | E175: 52 | F175: 0.6 | G175: 51 | H175: 0.6 | I175: 51 | J175: 5.4 | K175: 47 | L175: 3.7 | M175: 82
A176: 172 | B176: 20210108 | C176: 4시 | D176: -17.2 | E176: 47 | F176: 0.2 | G176: 53 | H176: 0.2 | I176: 53 | J176: 5 | K176: 50 | L176: 3.6 | M176: 94
A177: 173 | B177: 20210108 | C177: 5시 | D177: -17.5 | E177: 47 | F177: -0.2 | G177: 54 | H177: -0.2 | I177: 54 | J177: 4.9 | K177: 50 | L177: 3 | M177: 99
A178: 174 | B178: 20210108 | C178: 6시 | D178: -17.8 | E178: 47 | F178: -0.1 | G178: 52 | H178: -0.1 | I178: 52 | J178: 4.7 | K178: 52 | L178: 2.5 | M178: 99
A179: 175 | B179: 20210108 | C179: 7시 | D179: -17.8 | E179: 47 | F179: 0 | G179: 52 | H179: 0 | I179: 52 | J179: 4.8 | K179: 49 | L179: 2.1 | M179: 95
A180: 176 | B180: 20210108 | C180: 8시 | D180: -18.2 | E180: 46 | F180: -0.1 | G180: 52 | H180: -0.1 | I180: 52 | J180: 3.7 | K180: 72 | L180: 1.7 | M180: 89
A181: 177 | B181: 20210108 | C181: 9시 | D181: -18.5 | E181: 49 | F181: -0.4 | G181: 52 | H181: -0.4 | I181: 52 | J181: 2.9 | K181: 85 | L181: 1.8 | M181: 88
A182: 178 | B182: 20210108 | C182: 10시 | D182: -17.9 | E182: 46 | F182: 1.2 | G182: 49 | H182: 1.2 | I182: 49 | J182: 3.1 | K182: 88 | L182: 1.7 | M182: 85
A183: 179 | B183: 20210108 | C183: 11시 | D183: -15.6 | E183: 39 | F183: 2.4 | G183: 48 | H183: 2.4 | I183: 48 | J183: 3.5 | K183: 89 | L183: 1.5 | M183: 88
A184: 180 | B184: 20210108 | C184: 12시 | D184: -14.5 | E184: 38 | F184: 3.3 | G184: 46 | H184: 3.3 | I184: 46 | J184: 3.3 | K184: 90 | L184: 1.4 | M184: 83
A185: 181 | B185: 20210108 | C185: 13시 | D185: -13.4 | E185: 37 | F185: 4.5 | G185: 43 | H185: 4.5 | I185: 43 | J185: 3.8 | K185: 89 | L185: 1.6 | M185: 67
A186: 182 | B186: 20210108 | C186: 14시 | D186: -12.2 | E186: 38 | F186: 5.5 | G186: 37 | H186: 5.5 | I186: 37 | J186: 4.7 | K186: 84 | L186: 1.6 | M186: 65
A187: 183 | B187: 20210108 | C187: 15시 | D187: -11.6 | E187: 36 | F187: 5.7 | G187: 37 | H187: 5.7 | I187: 37 | J187: 5.6 | K187: 70 | L187: 1.3 | M187: 55
A188: 184 | B188: 20210108 | C188: 16시 | D188: -11.2 | E188: 36 | F188: 6.1 | G188: 35 | H188: 6.1 | I188: 35 | J188: 4.1 | K188: 79 | L188: 0.4 | M188: 51
A189: 185 | B189: 20210108 | C189: 17시 | D189: -11.3 | E189: 35 | F189: 6.1 | G189: 33 | H189: 6.1 | I189: 33 | J189: 4.2 | K189: 75 | L189: -0.7 | M189: 46
A190: 186 | B190: 20210108 | C190: 18시 | D190: -11.7 | E190: 39 | F190: 5.6 | G190: 31 | H190: 5.6 | I190: 31 | J190: 3.8 | K190: 64 | L190: -1.3 | M190: 48
A191: 187 | B191: 20210109 | C191: 19시 | D191: -12.6 | E191: 41 | F191: 4.2 | G191: 32 | H191: 4.2 | I191: 32 | J191: 2.4 | K191: 63 | L191: -2.2 | M191: 53
A192: 188 | B192: 20210109 | C192: 20시 | D192: -13.1 | E192: 42 | F192: 3.7 | G192: 34 | H192: 3.7 | I192: 34 | J192: 1.7 | K192: 56 | L192: -3 | M192: 54
A193: 189 | B193: 20210109 | C193: 21시 | D193: -13.5 | E193: 47 | F193: 2.9 | G193: 38 | H193: 2.9 | I193: 38 | J193: 1.2 | K193: 54 | L193: -3.7 | M193: 51
A194: 190 | B194: 20210109 | C194: 22시 | D194: -14.1 | E194: 51 | F194: 1.9 | G194: 42 | H194: 1.9 | I194: 42 | J194: 0.9 | K194: 55 | L194: -4.4 | M194: 53
A195: 191 | B195: 20210109 | C195: 23시 | D195: -14.5 | E195: 54 | F195: 1.4 | G195: 44 | H195: 1.4 | I195: 44 | J195: 0.2 | K195: 56 | L195: -5 | M195: 53
A196: 192 | B196: 20210109 | C196: 24시 | D196: -15.2 | E196: 55 | F196: 1.6 | G196: 45 | H196: 1.6 | I196: 45 | J196: -0.3 | K196: 54 | L196: -5.5 | M196: 50
A197: 193 | B197: 20210109 | C197: 1시 | D197: -15.4 | E197: 47 | F197: 1.5 | G197: 47 | H197: 1.5 | I197: 47 | J197: -0.6 | K197: 53 | L197: -6 | M197: 49
A198: 194 | B198: 20210109 | C198: 2시 | D198: -15.3 | E198: 44 | F198: 1 | G198: 50 | H198: 1 | I198: 50 | J198: -0.8 | K198: 52 | L198: -6.7 | M198: 45
A199: 195 | B199: 20210109 | C199: 3시 | D199: -15.1 | E199: 47 | F199: 0.6 | G199: 50 | H199: 0.6 | I199: 50 | J199: -1.2 | K199: 54 | L199: -7.3 | M199: 48
A200: 196 | B200: 20210109 | C200: 4시 | D200: -14.8 | E200: 42 | F200: 0.4 | G200: 49 | H200: 0.4 | I200: 49 | J200: -1.7 | K200: 50 | L200: -7.8 | M200: 46
... 4300 more rows

Sheet ushf (hidden)
G1: x | H1: db | I1: ent | J1: rh | K1: u
F2: q1 | G2: 0.025 | H2: 25 | I2: =entfuc(H2,G2) -> 88.83750153
F3: q2 | G3: 0.015 | H3: 25 | I3: =entfuc(H3,G3) -> 63.36249924
G4: =G2-G3 -> 0.01 | I4: =I2-I3 -> 25.47500229 | K4: =I4/G4 -> 2547.500229
F5: q3 | L5: X상수
G6: =$G$3 -> 0.015 | H6: =db2fuc(G6,I6) -> -47.08143616 | I6: =$I$2-$G$4*K6 -> -11.16249847 | K6: 10000 | L6: =-($H$3-H6)/10 -> -7.208143616
G7: =$G$3 -> 0.015 | H7: =db2fuc(G7,I7) -> -37.40932083 | I7: =$I$2-$G$4*K7 -> -1.162498474 | K7: 9000 | L7: =-($H$3-H7)/10 -> -6.240932083
G8: 0.015 | H8: =db2fuc(G8,I8) -> -27.73720551 | I8: 8.837501526 | K8: 8000 | L8: -5.273720551
G9: 0.015 | H9: =db2fuc(G9,I9) -> -18.06509018 | I9: 18.83750153 | K9: 7000 | L9: -4.306509018
G10: 0.015 | H10: =db2fuc(G10,I10) -> -8.392975807 | I10: 28.83750153 | K10: 6000 | L10: -3.339297581
G11: 0.015 | H11: =db2fuc(G11,I11) -> 1.279139519 | I11: 38.83750153 | K11: 5000 | L11: -2.372086048
G12: 0.015 | H12: =db2fuc(G12,I12) -> 10.95125484 | I12: 48.83750153 | K12: 4000 | L12: -1.404874516
G13: 0.015 | H13: =db2fuc(G13,I13) -> 20.62336922 | I13: 58.83750153 | K13: 3000 | L13: =-($H$3-H13)/10 -> -0.4376630783
G14: 0.015 | H14: =db2fuc(G14,I14) -> 25.45942688 | I14: 63.83750153 | K14: 2500 | L14: =-($H$3-H14)/10 -> 0.04594268799
G15: 0.015 | H15: =db2fuc(G15,I15) -> 30.29548454 | I15: 68.83750153 | K15: 2000 | L15: =-($H$3-H15)/10 -> 0.5295484543
G16: 0.015 | H16: =db2fuc(G16,I16) -> 39.96760178 | I16: 78.83750153 | K16: 1000 | L16: 1.496760178
G17: 0.015 | H17: =db2fuc(G17,I17) -> 49.6397171 | I17: 88.83750153 | K17: 0 | L17: 2.46397171
G18: 0.015 | H18: =db2fuc(G18,I18) -> 68.98394775 | I18: 108.8375015 | K18: -2000 | L18: 4.398394775
G19: 0.015 | H19: =db2fuc(G19,I19) -> 98.00028229 | I19: 138.8375015 | K19: -5000 | L19: 7.300028229
G21: =$G$3 -> 0.015 | H21: =db2fuc(G21,I21) -> 6.115197182 | I21: =$I$2-$G$4*K21 -> 43.83750153 | K21: 4500 | L21: =-($H$3-H21)/10 -> -1.888480282
G22: 0.015 | H22: =db2fuc(G22,I22) -> 12.88567829 | I22: 50.83750153 | K22: 3800 | L22: -1.211432171
G23: 0.015 | H23: =db2fuc(G23,I23) -> 14.82010078 | I23: 52.83750153 | K23: 3600 | L23: -1.017989922
G24: 0.015 | H24: =db2fuc(G24,I24) -> 16.75452423 | I24: 54.83750153 | K24: 3400 | L24: -0.8245475769
G25: 0.015 | H25: =db2fuc(G25,I25) -> 18.68894768 | I25: 56.83750153 | K25: 3200 | L25: -0.6311052322
G26: 0.015 | H26: =db2fuc(G26,I26) -> 21.59058189 | I26: 59.83750153 | K26: 2900 | L26: -0.3409418106
G27: 0.015 | H27: =db2fuc(G27,I27) -> 22.55779266 | I27: 60.83750153 | K27: 2800 | L27: -0.2442207336
G28: 0.015 | H28: =db2fuc(G28,I28) -> 23.52500534 | I28: 61.83750153 | K28: 2700 | L28: -0.1474994659
G29: 0.015 | H29: =db2fuc(G29,I29) -> 24.49221611 | I29: 62.83750153 | K29: 2600 | L29: -0.05077838898
G30: 0.015 | H30: =db2fuc(G30,I30) -> 26.42663956 | I30: 64.83750153 | K30: 2400 | L30: 0.1426639557
G31: 0.015 | H31: =db2fuc(G31,I31) -> 27.39385033 | I31: 65.83750153 | K31: 2300 | L31: 0.2393850327
G32: 0.015 | H32: =db2fuc(G32,I32) -> 28.361063 | I32: 66.83750153 | K32: 2200 | L32: 0.3361063004
G33: 0.015 | H33: =db2fuc(G33,I33) -> 29.32827377 | I33: 67.83750153 | K33: 2100 | L33: 0.4328273773
G34: 0.015 | H34: =db2fuc(G34,I34) -> 32.22990799 | I34: 70.83750153 | K34: 1800 | L34: 0.722990799
G35: 0.015 | H35: =db2fuc(G35,I35) -> 34.16433334 | I35: 72.83750153 | K35: 1600 | L35: 0.9164333344
G36: 0.015 | H36: =db2fuc(G36,I36) -> 36.09875488 | I36: 74.83750153 | K36: 1400 | L36: 1.109875488
G37: 0.015 | H37: =db2fuc(G37,I37) -> 38.03317642 | I37: 76.83750153 | K37: 1200 | L37: 1.303317642
G38: 0.015 | H38: =db2fuc(G38,I38) -> 41.90202332 | I38: 80.83750153 | K38: 800 | L38: 1.690202332
G39: 0.015 | H39: =db2fuc(G39,I39) -> 43.83644867 | I39: 82.83750153 | K39: 600 | L39: 1.883644867
G40: 0.015 | H40: =db2fuc(G40,I40) -> 45.77087021 | I40: 84.83750153 | K40: 400 | L40: 2.077087021
G41: 0.015 | H41: =db2fuc(G41,I41) -> 47.70529175 | I41: 86.83750153 | K41: 200 | L41: 2.270529175
G42: 0.015 | H42: =db2fuc(G42,I42) -> 59.31183243 | I42: 98.83750153 | K42: -1000 | L42: 3.431183243
K49: shf
F50: q1 | G50: 0.025 | H50: 35 | I50: =entfuc(H50,G50) -> 99.36250305
F51: q2 | G51: 0.025 | H51: 15 | I51: =entfuc(H51,G51) -> 78.3125
I52: =I50-I51 -> 21.05000305
L53: Y상수
G54: =inx1fuc(H54,I54) -> 0.02408557013 | H54: =$H$51 -> 15 | I54: =$I$50-$I$52/K54 -> 75.97361077 | K54: 0.9 | L54: =-($G$51-G54)/0.001/20 -> -0.04572149366
G55: =inx1fuc(H55,I55) -> 0.02289928496 | H55: =$H$51 -> 15 | I55: =$I$50-$I$52/K55 -> 73.04999924 | K55: 0.8 | L55: =-($G$51-G55)/0.001/20 -> -0.1050357521
G56: =inx1fuc(H56,I56) -> 0.02131756954 | H56: 15 | I56: 69.29107012 | K56: 0.7 | L56: -0.1841215231
G57: =inx1fuc(H57,I57) -> 0.01934042387 | H57: 15 | I57: 64.27916463 | K57: 0.6 | L57: -0.2829788066
G58: =inx1fuc(H58,I58) -> 0.01657242328 | H58: 15 | I58: 57.26249695 | K58: 0.5 | L58: -0.421378836
G59: =inx1fuc(H59,I59) -> 0.01261813473 | H59: 15 | I59: 46.73749542 | K59: 0.4 | L59: -0.6190932635
G60: =inx1fuc(H60,I60) -> 0.00550041534 | H60: 15 | I60: 29.19582621 | K60: 0.3 | L60: -0.974979233
G61: =inx1fuc(H61,I61) -> -0.008339594118 | H61: 15 | I61: -5.887512207 | K61: 0.2 | L61: -1.666979706
G62: =inx1fuc(H62,I62) -> -0.04985962436 | H62: 15 | I62: -111.1375275 | K62: 0.1 | L62: -3.742981218
G63: =inx1fuc(H63,I63) -> 0.1166159213 | H63: 15 | I63: 309.8625336 | K63: -0.1 | L63: 4.580796063
G64: =inx1fuc(H64,I64) -> 0.07509589195 | H64: 15 | I64: 204.6125183 | K64: -0.2 | L64: 2.504794598
G65: =inx1fuc(H65,I65) -> 0.06125588343 | H65: 15 | I65: 169.5291799 | K65: -0.3 | L65: 1.812794171
G66: =inx1fuc(H66,I66) -> 0.05413816124 | H66: 15 | I66: 151.9875107 | K66: -0.4 | L66: 1.456908062
G67: =inx1fuc(H67,I67) -> 0.04978844523 | H67: 15 | I67: 141.4625092 | K67: -0.5 | L67: 1.239422262
G68: =inx1fuc(H68,I68) -> 0.04148444161 | H68: 15 | I68: 120.4125061 | K68: -1 | L68: 0.8242220804
G69: =inx1fuc(H69,I69) -> 0.03753015026 | H69: 15 | I69: 109.8875046 | K69: -2 | L69: 0.6265075132
G70: =inx1fuc(H70,I70) -> 0.03555300832 | H70: 15 | I70: 104.6250038 | K70: -4 | L70: 0.5276504159
G71: =inx1fuc(H71,I71) -> 0.03318043426 | H71: 15 | I71: 99.362482 | K71: 1000000 | L71: =-($G$51-G71)/0.001/20 -> 0.4090217128
G72: =inx1fuc(H72,I72) -> 0.03120329045 | H72: 15 | I72: 94.10000229 | K72: 4 | L72: =-($G$51-G72)/0.001/20 -> 0.3101645224
G73: =inx1fuc(H73,I73) -> 0.02922614664 | H73: 15 | I73: 88.83750153 | K73: 2 | L73: 0.2113073319
G74: =inx1fuc(H74,I74) -> 0.02764443122 | H74: 15 | I74: 85.32916768 | K74: 1.5 | L74: 0.1322215609
G80: 7.5 | H80: x | I80: y
F81: o1 | G81: 0 | H81: 90 | I81: 100
F82: o2 | G82: =$G$80+G81 -> 7.5 | H82: =90+SIN(G82)*10 -> 99.37999977 | I82: =100+COS(G82)*10 -> 103.4663532
F83: o3 | G83: =$G$80+G82 -> 15 | H83: =90+SIN(G83)*10 -> 96.5028784 | I83: =100+COS(G83)*10 -> 92.40312087
F84: o4 | G84: 22.5 | H84: 85.12825488 | I84: 91.2669536
F85: o5 | G85: 30 | H85: 80.11968376 | I85: 101.5425145
F86: o6 | G86: 37.5 | H86: 88.022012 | I86: 109.8024264
F87: o7 | G87: 45 | H87: 98.50903525 | I87: 105.2532199
F88: o8 | G88: 52.5 | H88: 97.87705227 | I88: 93.83947668
F89: o9 | G89: 60 | H89: 86.95189379 | I89: 90.4758702
F90: o10 | G90: 67.5 | H90: 80.0097852 | I90: 99.55772379
F91: o11 | G91: 75 | H91: 86.12218365 | I91: 109.2175127
F92: o12 | G92: 82.5 | H92: 97.30183859 | I92: 106.8325071
F93: o13 | G93: 90 | H93: 98.93996664 | I93: 95.51926384
J96: x | K96: y | L96: 간격 | M96: 칸
H97: 원중심 좌표 | J97: 70 | K97: 90 | L97: 10 | M97: 10
I98: l1 | J98: =$J$97-$L$97*$M$97/10*10 -> -30 | K98: =$K$97+0 -> 90 | L98: =$J$97+$L$97*$M$97/10*10 -> 170 | M98: =$K$97+0 -> 90
I99: l2 | J99: =$J$97-$L$97*$M$97+$L$97*$M$97/10*0.5 -> -25 | K99: =$K$97+$L$97*$M$97/10*3 -> 120 | L99: =$J$97+$L$97*$M$97-$L$97*$M$97/10*0.5 -> 165 | M99: =$K$97+$L$97*$M$97/10*3 -> 120
I100: l3 | J100: =$J$97-$L$97*$M$97+$L$97*$M$97/10*2 -> -10 | K100: =$K$97+$L$97*$M$97/10*6 -> 150 | L100: =$J$97+$L$97*$M$97-$L$97*$M$97/10*2 -> 150 | M100: =$K$97+$L$97*$M$97/10*6 -> 150
I101: l4 | J101: =$J$97-$L$97*$M$97+$L$97*$M$97/10*4 -> 10 | K101: =$K$97+$L$97*$M$97/10*8 -> 170 | L101: =$J$97+$L$97*$M$97-$L$97*$M$97/10*4 -> 130 | M101: =$K$97+$L$97*$M$97/10*8 -> 170
I102: l5 | J102: =$J$97-$L$97*$M$97+$L$97*$M$97/10*7 -> 40 | K102: =$K$97+$L$97*$M$97/10*9.5 -> 185 | L102: =$J$97+$L$97*$M$97-$L$97*$M$97/10*7 -> 100 | M102: =$K$97+$L$97*$M$97/10*9.5 -> 185
I103: l6 | J103: =$J$97-$L$97*$M$97+$L$97*$M$97/10*10 -> 70 | K103: =$K$97+$L$97*$M$97/10*10 -> 190 | L103: =$J$97+$L$97*$M$97-$L$97*$M$97/10*10 -> 70 | M103: =$K$97+$L$97*$M$97/10*10 -> 190
